fUSD/lending_fUSD_20240407
["ID","MTS","AMOUNT","RATE_DAILY","PERIOD"]
[321795852,1712518146128,-950.0,0.0003,23]
[321795853,1712518187947,494.39,0.0001762,2]
[321795854,1712518226687,-800.0,0.00031,25]
[321795871,1712518232079,-593.48805969,0.00019,3]
[321795872,1712518232092,-522.56496719,0.00019,3]
[321795873,1712518232129,-633.94697312,0.00019,3]
[321795874,1712518232138,-179.32336699,0.0001941,2]
[321795875,1712518232148,-500.0,0.0001951,2]
[321795876,1712518232158,-200.0,0.00019538,2]
[321795877,1712518232168,-200.0,0.00019552,2]
[321795878,1712518232177,-155.32138146,0.00019572,2]
[321795879,1712518232186,-149.19575636,0.00019596,2]
[321795880,1712518232197,-82.65424364,0.00019596,2]
[321795881,1712518232207,-163.24,0.00019639,2]
[321795882,1712518232216,-3013.3751,0.00019664,2]
[321795883,1712518232226,-253.59,0.00019672,2]
[321795884,1712518232235,-267.74632671,0.00019694,2]
[321795885,1712518232279,-3140.35106807,0.00019694,2]
[321795886,1712518232289,-1074.04,0.00019708,2]
[321795887,1712518232297,-666.44,0.00019729,2]
[321795888,1712518232306,-2730.27,0.00019764,4]
[321795889,1712518232315,-621.04,0.00019774,2]
[321795890,1712518232324,-365.96,0.00019803,2]
[321795891,1712518232333,-800.0,0.00019873,2]
[321795892,1712518232342,-499.99,0.00019873,2]
[321795893,1712518232351,-278.64965649,0.00019884,2]
[321795894,1712518232377,-215.74034351,0.00019884,2]
[321795895,1712518232386,-207.92,0.00019942,2]
[321795896,1712518232396,-1568.49087536,0.0001995,2]
[321795897,1712518232421,-692.83,0.0001995,2]
[321795898,1712518232431,-1434.40762737,0.0001995,2]
[321795899,1712518232443,-596.215831,0.0001995,2]
[321795956,1712518238236,-717.6638505,0.0001995,2]
[321795962,1712518238287,-4308.01222983,0.0001995,2]
[321796086,1712518240336,-321.30727191,0.0001995,2]
[321796088,1712518240347,-4396.85231403,0.0001995,2]
[321796090,1712518240357,-150.0,0.000205,2]
[321796092,1712518240366,-660.95067663,0.0002052,2]
[321796094,1712518240377,-129.04932337,0.0002052,2]
[321796096,1712518240387,-540.0,0.00020548,2]
[321796098,1712518240397,-850.62067658,0.00020732,2]
[321796111,1712518240504,-3831.87333386,0.00020732,2]
[321796270,1712518243764,-877.29660043,0.00020732,2]
[321796271,1712518243775,-3948.05378913,0.00020732,2]
[321796272,1712518243786,-167.14,0.00020732,2]
[321796273,1712518243796,-3721.17,0.0002075,2]
[321796274,1712518243805,-152.4364953,0.0002079,2]
[321796275,1712518243814,-3727.796,0.0002082,2]
[321796276,1712518243823,-800.0,0.00020832,2]
[321796277,1712518243833,-500.0,0.00020832,2]
[321796278,1712518243842,-6932.65916659,0.00020899,2]
[321796279,1712518243887,-860.55034532,0.00020899,2]
[321796284,1712518246051,-245.30828809,0.00020899,2]
[321796285,1712518246061,-500.0,0.00020899,2]
[321796286,1712518246070,-1323.7061,0.00020899,2]
[321796287,1712518246079,-155.32138146,0.00020899,2]
[321796288,1712518246088,-333.14997205,0.00020899,2]
[321796289,1712518246097,-427.55958467,0.00020899,2]
[321796290,1712518246107,-2821.5496,0.000209,2]
[321796291,1712518246116,-420.68478712,0.000209,2]
[321796292,1712518246125,-210.6222546,0.00020989,2]
[321796293,1712518246134,-500.0,0.00020997,2]
[321796294,1712518246143,-7.59803199,0.00020997,2]
[321796295,1712518246165,-2346.74286058,0.00020997,2]
[321796296,1712518246175,-7885.87188707,0.00020997,2]
[321796297,1712518246184,-682.38593014,0.00020998,2]
[321796298,1712518246193,-5655.7514564,0.00020998,2]
[321796299,1712518246201,-1989.51440681,0.00020998,2]
[321796300,1712518246276,-71811.31681449,0.00020998,2]
[321796301,1712518246286,-648.2666,0.00020999,2]
[321796302,1712518246296,-962.69152361,0.00020999,2]
[321796303,1712518246305,-61293.04473004,0.00020999,2]
[321796308,1712518294095,-544.0032413,0.00024,15]
[321796309,1712518294116,-1755.9967587,0.00024329,15]
[321796310,1712518503716,163.22,0.0002099,15]
[321796311,1712518732028,476.72,0.00018092,2]
[321796312,1712518973144,-1042.90820021,0.00019195,2]
[321796313,1712518973167,-1968.79710509,0.00019196,2]
[321796314,1712518973188,-22753.64962513,0.00019197,2]
[321796315,1712518973213,-150.0,0.00019197,2]
[321796316,1712518973235,-150.0,0.00019197,2]
[321796317,1712518973256,-134.64506957,0.00019198,2]
[321796318,1712518985037,297.03464584,0.00018092,2]
[321796319,1712518985718,291.82638217,0.00018092,2]
[321796320,1712518992462,219.61328057,0.00018092,2]
[321796321,1712518998475,214.86790518,0.00018092,2]
[321796322,1712518999593,21337.22104916,0.00018092,2]
[321796323,1712519000541,260.73643222,0.00018092,2]
[321796324,1712519000958,222.63620183,0.00018092,2]
[321796325,1712519005580,305.95151618,0.00018092,2]
[321796326,1712519226161,-219.97617906,0.00019197,2]
[321796327,1712519240111,-576.2101988,0.00019197,2]
[321796328,1712519252936,503.6,0.00017337,2]
[321796331,1712519432239,-10864.84083987,0.00019195,2]
[321796332,1712519432379,-458.92033612,0.00019195,2]
[321796333,1712519432392,-610.5425558,0.00019195,2]
[321796334,1712519432406,-5530.20700961,0.00019195,2]
[321796335,1712519432439,-1527.43912388,0.00019195,2]
[321796336,1712519432448,-531.55753269,0.00019196,2]
[321796337,1712519432458,-5861.56541496,0.00019197,2]
[321796338,1712519432467,-536.0389282,0.00019197,2]
[321796339,1712519432477,-23745.35493043,0.00019198,2]
[321796340,1712519432486,-422.29,0.00019214,2]
[321796341,1712519432496,-247.25,0.0001923,2]
[321796342,1712519432504,-160.0,0.00019244,2]
[321796343,1712519432515,-200.0,0.00019244,2]
[321796344,1712519432526,-299.96,0.00019303,2]
[321796345,1712519432535,-152.18,0.00019428,2]
[321796346,1712519432545,-499.99,0.00019601,2]
[321796347,1712519432554,-503.6,0.00019601,2]
[321796348,1712519432563,-150.0,0.00019671,2]
[321796349,1712519432573,-389.88,0.00019679,2]
[321796350,1712519432582,-389.88,0.00019684,2]
[321796351,1712519432591,-389.88,0.00019689,2]
[321796352,1712519432601,-389.88,0.00019694,2]
[321796353,1712519432611,-389.88,0.000197,2]
[321796354,1712519432620,-389.88,0.00019705,2]
[321796355,1712519432629,-389.88,0.0001971,2]
[321796356,1712519432638,-389.88,0.00019715,2]
[321796357,1712519432647,-389.88,0.0001972,2]
[321796358,1712519432656,-389.88,0.00019725,2]
[321796359,1712519432666,-389.88,0.00019731,2]
[321796360,1712519432675,-389.88,0.00019736,2]
[321796361,1712519432684,-389.88,0.00019741,2]
[321796362,1712519432693,-389.88,0.00019746,2]
[321796363,1712519432704,-389.88,0.00019751,2]
[321796364,1712519432715,-389.88,0.00019756,2]
[321796365,1712519432725,-389.88,0.00019762,2]
[321796366,1712519432734,-389.88,0.00019767,2]
[321796367,1712519432744,-150.0,0.00019767,2]
[321796368,1712519432753,-389.88,0.00019772,2]
[321796369,1712519432763,-389.88,0.00019777,2]
[321796370,1712519432771,-840.0,0.00019851,2]
[321796371,1712519432781,-302.01914611,0.0002,2]
[321796372,1712519432790,-694.23,0.0002001,2]
[321796373,1712519432800,-500.0,0.0002001,2]
[321796374,1712519432809,-345.725235,0.00020274,2]
[321796375,1712519432820,-152.18,0.0002044,2]
[321796376,1712519432830,-170.24,0.00020469,2]
[321796377,1712519432839,-1000.0,0.000205,2]
[321796378,1712519432850,-1000.0,0.000205,2]
[321796379,1712519432859,-150.0,0.000205,2]
[321796380,1712519432869,-1000.0,0.000205,2]
[321796381,1712519432880,-9999.99,0.00020547,2]
[321796382,1712519432888,-120.25736982,0.00020548,2]
[321796383,1712519432900,-641.74263018,0.00020548,2]
[321796384,1712519432909,-1000.0,0.000206,2]
[321796385,1712519432918,-511.0,0.000206,2]
[321796386,1712519432927,-207.13,0.00020615,2]
[321796387,1712519432936,-15196.96581504,0.00020688,2]
[321796388,1712519432945,-1000.0,0.000207,2]
[321796389,1712519432954,-1018.0,0.000207,2]
[321796390,1712519432964,-10000.0,0.0002076,2]
[321796391,1712519432973,-177.62554131,0.0002079,2]
[321796392,1712519432982,-200.0,0.00020831,2]
[321796393,1712519432992,-800.0,0.00020831,2]
[321796394,1712519433001,-200.0,0.00020832,2]
[321796395,1712519433010,-800.0,0.00020832,2]
[321796396,1712519433019,-800.0,0.00020832,2]
[321796397,1712519433028,-200.0,0.00020832,2]
[321796398,1712519433039,-500.0,0.00020832,2]
[321796399,1712519433049,-553.15103002,0.00020897,2]
[321796400,1712519433058,-3420.1767,0.00020897,2]
[321796401,1712519433069,-24495.84616716,0.00020898,2]
[321796402,1712519433078,-33864.3961,0.00020899,2]
[321796403,1712519433087,-16603.5187,0.00020899,2]
[321796404,1712519433096,-1990.6962,0.00020899,2]
[321796405,1712519433106,-5370.6689,0.00020899,2]
[321796406,1712519433116,-886.85799402,0.00020899,2]
[321796407,1712519433127,-561.4332707,0.00020899,2]
[321796408,1712519433137,-9750.0,0.000209,2]
[321796409,1712519433146,-1000.0,0.000209,2]
[321796410,1712519433156,-2986.21225,0.0002091,2]
[321796411,1712519433165,-3806.0,0.00020986,2]
[321796412,1712519433176,-7127.0,0.00020986,2]
[321796413,1712519433186,-631.98450112,0.00020988,2]
[321796414,1712519433197,-326.50550398,0.0002099,2]
[321796415,1712519433206,-222.36183567,0.00020997,2]
[321796416,1712519433215,-155.0,0.00020997,2]
[321796417,1712519433225,-661.78401527,0.00020997,2]
[321796418,1712519433236,-3073.04383837,0.00020997,2]
[321796419,1712519433245,-808.72922029,0.00020997,2]
[321796420,1712519433255,-407.21723758,0.00020997,2]
[321796421,1712519433264,-10539.79595238,0.00020997,2]
[321796422,1712519433275,-155.0,0.00020997,2]
[321796423,1712519433284,-266.49675638,0.00020997,2]
[321796424,1712519433293,-2173.81938731,0.00020997,2]
[321796425,1712519433303,-1580.41392657,0.00020997,2]
[321796426,1712519433312,-4716.5472582,0.00020997,2]
[321796427,1712519433322,-199.70075012,0.00020998,2]
[321796428,1712519433333,-3510.92503714,0.00020998,2]
[321796429,1712519433342,-530.0,0.00020999,2]
[321796430,1712519433352,-102568.55995933,0.00020999,2]
[321796431,1712519433475,-419.67248778,0.00020999,2]
[321796432,1712519433488,-2250.0,0.00020999,2]
[321796433,1712519433530,-692.5,0.00020999,2]
[321796434,1712519433747,-3897.06124277,0.00020999,2]
[321796435,1712519433781,-55712.49438996,0.00020999,2]
[321796436,1712519433801,-61152.35015862,0.00020999,2]
[321796437,1712519433815,-300.0,0.00020999,2]
[321796438,1712519433826,-4234.8,0.00020999,2]
[321796476,1712519438489,-177.62554132,0.0002079,2]
[321796478,1712519438499,-1945.83210374,0.00020897,2]
[321796480,1712519438508,-77487.70263834,0.00020999,2]
[321796484,1712519438531,-2004.12324727,0.00020999,2]
[321796486,1712519438542,-14814.19808119,0.00020999,2]
[321796522,1712519438819,-3657.84866337,0.00020999,2]
[321796588,1712519440311,-1283.75493391,0.00020999,2]
[321796589,1712519440581,-1280877.77085455,0.00020999,2]
[321796590,1712519440591,-641.79434907,0.00020999,2]
[321796591,1712519440601,-2986.21224,0.00020999,2]
[321796592,1712519440610,-325638.20984498,0.00021,2]
[321796593,1712519440619,-209639.50795483,0.00021,2]
[321796594,1712519440630,-801048.84134909,0.00021,2]
[321796599,1712519443246,-1037.674476,0.00021,2]
[321796600,1712519443409,-2524.05986764,0.00021,2]
[321796601,1712519443464,-189963.66621772,0.00021,2]
[321796602,1712519443520,-746468.82915351,0.00021,2]
[321796607,1712519447316,-500.0,0.00020759,2]
[321796608,1712519447325,-500.0,0.00020759,2]
[321796609,1712519447338,-350.62415643,0.00020759,2]
[321796610,1712519447347,-500.0,0.00020759,2]
[321796611,1712519447357,-427.86289938,0.00020999,2]
[321796612,1712519447366,-637.27657111,0.00020999,2]
[321796613,1712519447377,-11107.14858317,0.00021,2]
[321796614,1712519447426,-779.48879845,0.00021,2]
[321796615,1712519447438,-386.26395114,0.00021,2]
[321796616,1712519447483,-1309.99765462,0.00021,2]
[321796617,1712519447599,-3358.1885,0.00021,2]
[321796638,1712519481689,3634.0731,0.00017337,2]
[321796639,1712519481709,6960.39664586,0.00017337,2]
[321796640,1712519481730,6934.1694,0.00017337,2]
[321796641,1712519481751,2978.61963039,0.00017337,2]
[321796643,1712519574364,1542.97782894,0.00017337,2]
[321796644,1712519593960,10000.0,0.00020312,5]
[321796654,1712519767702,511.91,0.00017743,2]
[321796656,1712519962566,-500.0,0.00018985,2]
[321796657,1712519962594,-155.0,0.00018986,2]
[321796658,1712519962618,-973.5877239,0.00018989,2]
[321796659,1712519962642,-150.0,0.00018992,2]
[321796660,1712519962666,-150.0,0.00018992,2]
[321796661,1712519962690,-8071.4122761,0.00018993,2]
[321796662,1712520271422,486.31,0.00017347,2]
[321796663,1712520277520,779.36919387,0.00017346,2]
[321796664,1712520277621,155.0,0.00017346,2]
[321796665,1712520425122,-983.949043,0.00018513,2]
[321796666,1712520425143,-306.4295974,0.00018605,2]
[321796667,1712520442122,-155.0,0.00018511,2]
[321796668,1712520442142,-682.38593014,0.00018512,2]
[321796669,1712520442164,-193.5704026,0.00018605,2]
[321796670,1712520442187,-1296.06527448,0.00018606,2]
[321796671,1712520442207,-150.0,0.00018701,2]
[321796672,1712520442226,-539.37731829,0.00018702,2]
[321796673,1712520442246,-930.04816714,0.00018899,2]
[321796674,1712520489919,299.99,0.00019282,4]
[321796675,1712520556100,-2812.35270956,0.00018897,2]
[321796676,1712520556119,-492.9384639,0.00018898,2]
[321796677,1712520556140,-2747.23077622,0.000189,2]
[321796678,1712520567633,4549.2899,0.00018799,2]
[321796693,1712520632410,-973.5877239,0.00018899,2]
[321796694,1712520632420,-8485.37558176,0.000189,2]
[321796695,1712520632430,-1750.0,0.00019,3]
[321796696,1712520632441,-500.0,0.00019106,2]
[321796697,1712520632460,-155.0,0.00019107,2]
[321796699,1712520632480,-150.0,0.00019109,2]
[321796701,1712520632498,-202.93795667,0.00019178,2]
[321796703,1712520632507,-500.0,0.00019238,2]
[321796705,1712520632516,-3654.29,0.00019238,2]
[321796707,1712520632526,-1316.87,0.00019245,2]
[321796709,1712520632534,-160.96,0.00019252,2]
[321796710,1712520632544,-1000.0,0.00019268,2]
[321796711,1712520632553,-1201.81,0.00019282,2]
[321796712,1712520632562,-200.0,0.00019282,2]
[321796713,1712520632572,-150.99,0.00019282,2]
[321796714,1712520632581,-614.48,0.00019289,2]
[321796715,1712520632591,-160.0,0.000193,2]
[321796716,1712520632601,-163.47,0.000193,2]
[321796717,1712520632610,-1047.9,0.000193,2]
[321796718,1712520632620,-160.96,0.00019396,2]
[321796719,1712520632629,-500.0,0.00019442,2]
[321796720,1712520632641,-160.96,0.00019539,2]
[321796721,1712520632652,-150.99,0.00019568,2]
[321796722,1712520632662,-499.99,0.00019568,2]
[321796723,1712520632672,-486.31,0.00019611,2]
[321796724,1712520632684,-160.96,0.00019682,2]
[321796725,1712520632693,-1000.0,0.00019742,2]
[321796726,1712520632703,-208.4,0.00019743,10]
[321796727,1712520632712,-872.0,0.00019819,2]
[321796728,1712520632721,-170.91,0.00019819,2]
[321796729,1712520632730,-160.96,0.00019825,2]
[321796730,1712520632739,-160.96,0.00019969,2]
[321796731,1712520632748,-160.96,0.00020112,2]
[321796732,1712520632757,-160.96,0.00020255,2]
[321796733,1712520632766,-327.429762,0.00020274,2]
[321796734,1712520632775,-326.50550398,0.00020312,2]
[321796735,1712520632785,-170.21,0.00020339,2]
[321796736,1712520632794,-6738.37038467,0.00020395,2]
[321796737,1712520632805,-3060.46779195,0.00020395,2]
[321796738,1712520632836,-201.16182338,0.00020395,2]
[321796739,1712520632846,-5287.47149266,0.00020444,5]
[321796740,1712520632857,-57820.54850734,0.00020444,5]
[321796741,1712520632866,-12001.93036764,0.00020444,5]
[321796742,1712520632935,-4318.56012524,0.00020444,5]
[321796743,1712520632946,-1356.51365048,0.00020444,5]
[321796744,1712520632976,-14922.96585664,0.00020444,5]
[321796745,1712520632986,-150.0,0.000205,2]
[321796746,1712520632995,-540.0,0.0002052,2]
[321796747,1712520633005,-150.0,0.00020605,2]
[321796748,1712520633014,-207.13,0.00020665,2]
[321796749,1712520633024,-209.4196,0.00020699,2]
[321796750,1712520633033,-3801.6005,0.00020699,2]
[321796751,1712520633043,-433.5946,0.00020699,2]
[321796752,1712520633053,-1000.0,0.00020699,2]
[321796753,1712520633062,-2500.0,0.00020699,2]
[321796754,1712520633071,-2981.82015937,0.00020699,2]
[321796755,1712520633081,-9150.18431384,0.00020699,2]
[321796756,1712520633091,-2974.3697,0.000207,2]
[321796757,1712520633101,-1000.0,0.000207,2]
[321796758,1712520633110,-1015.0,0.000207,2]
[321796759,1712520633119,-1000.0,0.000207,2]
[321796760,1712520633128,-2981.82015933,0.00020721,2]
[321796761,1712520633138,-9150.18431384,0.00020721,2]
[321796762,1712520633147,-2981.82015933,0.00020744,2]
[321796763,1712520633156,-9150.18431384,0.00020744,2]
[321796764,1712520633165,-2981.82015933,0.00020766,2]
[321796765,1712520633174,-9150.18431384,0.00020766,2]
[321796766,1712520633185,-3737.67455176,0.00020787,2]
[321796767,1712520633195,-155.37066366,0.00020788,2]
[321796768,1712520633205,-336.19067971,0.00020788,2]
[321796769,1712520633215,-22744.39313526,0.00020788,2]
[321796770,1712520633225,-2981.82015933,0.00020788,2]
[321796771,1712520633235,-9150.18431384,0.00020788,2]
[321796772,1712520633244,-846.97,0.00020789,3]
[321796773,1712520633253,-191.41440565,0.0002079,2]
[321796774,1712520633263,-1990.80816,0.0002079,2]
[321796775,1712520633272,-100000.0,0.00020799,2]
[321796776,1712520633283,-1095.6091,0.00020799,2]
[321796777,1712520633294,-539.0973,0.000208,2]
[321796778,1712520633306,-8499.3422,0.000208,2]
[321796779,1712520633316,-264.8124,0.000208,2]
[321796780,1712520633325,-500.0,0.000208,2]
[321796781,1712520633335,-739.84771648,0.000208,2]
[321796782,1712520633346,-1000.0,0.000208,2]
[321796783,1712520633356,-2981.82015933,0.00020811,2]
[321796784,1712520633366,-9150.18431384,0.00020811,2]
[321796785,1712520633375,-739.84771646,0.00020814,2]
[321796786,1712520633384,-739.84771646,0.00020829,2]
[321796787,1712520633394,-200.0,0.00020832,2]
[321796788,1712520633403,-800.0,0.00020832,2]
[321796789,1712520633412,-200.0,0.00020832,2]
[321796790,1712520633422,-500.0,0.00020832,2]
[321796791,1712520633432,-2981.82015933,0.00020833,2]
[321796792,1712520633441,-739.84771646,0.00020843,2]
[321796793,1712520633452,-2981.82015933,0.00020855,2]
[321796794,1712520633461,-739.84771646,0.00020857,2]
[321796795,1712520633470,-739.84771646,0.00020871,2]
[321796796,1712520633479,-2981.82015933,0.00020878,2]
[321796797,1712520633489,-10000.0,0.0002088,2]
[321796798,1712520633500,-370.46105347,0.0002088,2]
[321796799,1712520633509,-670.92593813,0.00020886,2]
[321796800,1712520633524,-68.92177833,0.00020886,2]
[321796801,1712520633535,-155.0,0.00020893,2]
[321796802,1712520633546,-1479.08379,0.00020897,2]
[321796803,1712520633555,-176.96432837,0.00020897,2]
[321796804,1712520633564,-2106.68709546,0.00020897,2]
[321796805,1712520633573,-170.39184109,0.00020897,2]
[321796806,1712520633582,-167.53974831,0.00020897,2]
[321796807,1712520633592,-369.03017856,0.00020897,2]
[321796808,1712520633601,-574.2273919,0.00020897,2]
[321796809,1712520633610,-152.61844791,0.00020897,2]
[321796810,1712520633619,-152.61844782,0.00020897,2]
[321796811,1712520633629,-1479.08378998,0.00020897,2]
[321796812,1712520633638,-152.61844782,0.00020897,2]
[321796813,1712520633647,-1338.11470445,0.00020898,2]
[321796814,1712520633659,-140.96908553,0.00020898,2]
[321796815,1712520633668,-913.84252538,0.00020898,2]
[321796848,1712520637844,-450.20690043,0.00020833,2]
[321796849,1712520637973,-8699.97741341,0.00020833,2]
[321796850,1712520637982,-152.61844782,0.00020898,2]
[321796851,1712520637992,-565.2412646,0.00020898,2]
[321796852,1712520638002,-152.61844782,0.00020898,2]
[321796853,1712520638011,-1479.08378998,0.00020898,2]
[321796855,1712520638021,-152.61844782,0.00020898,2]
[321796857,1712520638030,-1479.08378998,0.00020898,2]
[321796859,1712520638039,-2106.68709546,0.00020899,2]
[321796861,1712520638048,-170.39184107,0.00020899,2]
[321796863,1712520638057,-574.22739189,0.00020899,2]
[321796866,1712520638068,-1479.08378998,0.00020899,2]
[321796869,1712520638077,-325.7634,0.00020899,2]
[321796872,1712520638086,-1479.08378998,0.00020899,2]
[321796875,1712520638097,-1479.08378998,0.00020899,2]
[321796877,1712520638106,-678.33205716,0.00020899,3]
[321796879,1712520638115,-1479.08378998,0.00020899,2]
[321796881,1712520638124,-1479.08378998,0.000209,2]
[321796883,1712520638134,-1000.0,0.000209,2]
[321796885,1712520638143,-16213.3823324,0.000209,2]
[321796887,1712520638155,-7235.82877119,0.000209,2]
[321796892,1712520638191,-0.07598535,0.000209,2]
[321796895,1712520638207,-5918.43918552,0.000209,2]
[321796897,1712520638216,-1000.0,0.000209,2]
[321796899,1712520638226,-194.99717729,0.000209,2]
[321796901,1712520638235,-1479.08378998,0.000209,2]
[321796903,1712520638244,-176.96432837,0.000209,2]
[321796906,1712520638255,-2981.82015933,0.000209,2]
[321796908,1712520638264,-678.33205716,0.000209,3]
[321796909,1712520638272,-272.25463975,0.000209,2]
[321796912,1712520638282,-2291.65370849,0.000209,2]
[321796913,1712520638291,-739.84771646,0.000209,2]
[321796916,1712520638301,-2106.68709546,0.000209,2]
[321796918,1712520638310,-170.39184107,0.000209,2]
[321796920,1712520638319,-2623.11283136,0.00020936,2]
[321796921,1712520638328,-873.65591395,0.00020936,2]
[321796923,1712520638337,-155.67065173,0.00020936,2]
[321796926,1712520638347,-350.68219896,0.00020936,2]
[321796927,1712520638357,-197.60859781,0.0002097,2]
[321796929,1712520638366,-197.60859781,0.0002097,2]
[321796932,1712520638377,-230.57544894,0.00020978,2]
[321796934,1712520638386,-447.89094829,0.00020978,2]
[321796936,1712520638395,-1324.6513758,0.00020978,2]
[321796938,1712520638405,-8301.66084021,0.00020978,2]
[321796940,1712520638414,-584.84552738,0.00020978,2]
[321796942,1712520638423,-155.0,0.00020978,2]
[321796944,1712520638432,-164.01340579,0.00020978,2]
[321796946,1712520638441,-304.46832005,0.00020978,2]
[321796948,1712520638450,-808.90934401,0.00020978,2]
[321796950,1712520638459,-156.79881573,0.00020978,2]
[321796952,1712520638468,-2173.34818369,0.00020978,2]
[321796954,1712520638477,-188.89842005,0.00020978,2]
[321796955,1712520638486,-2348.97634667,0.00020978,2]
[321796956,1712520638495,-210.0107731,0.00020978,2]
[321796957,1712520638505,-295.82060124,0.00020978,2]
[321796958,1712520638514,-236.07179725,0.00020978,2]
[321796959,1712520638523,-155.0,0.00020978,2]
[321796960,1712520638533,-192.21755063,0.00020978,2]
[321796961,1712520638543,-4465.1280569,0.00020978,2]
[321796962,1712520638552,-1210.30084464,0.00020978,2]
[321796963,1712520638562,-787.25010372,0.00020978,2]
[321796964,1712520638574,-228.39712251,0.00020978,2]
[321796965,1712520638584,-207.17268662,0.00020978,2]
[321796966,1712520638594,-198.08381985,0.00020978,2]
[321796967,1712520638603,-158.36833835,0.00020978,2]
[321796968,1712520638613,-2408.39177422,0.00020979,2]
[321796969,1712520638624,-721.97070608,0.00020979,5]
[321796970,1712520638634,-571.0,0.0002098,2]
[321796971,1712520638643,-371110.77455684,0.0002098,2]
[321796972,1712520638653,-221.29572605,0.0002098,2]
[321796973,1712520638663,-6946118.35284437,0.0002098,2]
[321796974,1712520638676,-2780.27760656,0.00020997,2]
[321796975,1712520638686,-616.22742246,0.00020997,2]
[321796976,1712520638696,-503.87779719,0.00020997,2]
[321796977,1712520638705,-264.23544895,0.00020997,2]
[321796978,1712520638714,-6299.96928165,0.00020998,2]
[321796979,1712520638723,-155.0,0.00020998,2]
[321796980,1712520638732,-175.43329082,0.00020998,2]
[321796981,1712520638742,-160.91122999,0.00020998,2]
[321796982,1712520638751,-198.43466289,0.00020998,2]
[321796983,1712520638761,-217.03101893,0.00020998,2]
[321796984,1712520638770,-155.0,0.00020998,2]
[321796985,1712520638780,-155.624877,0.00020998,2]
[321796986,1712520638789,-155.0,0.00020998,2]
[321796987,1712520638799,-169.12911613,0.00020998,2]
[321796988,1712520638807,-703.66801743,0.00020998,2]
[321796989,1712520638816,-1034.92865455,0.00020998,2]
[321796990,1712520638825,-155.39379797,0.00020998,2]
[321796991,1712520638834,-362.27924693,0.00020999,2]
[321796992,1712520638843,-1672645.88138713,0.00020999,2]
[321796993,1712520638853,-766.58769473,0.00020999,2]
[321796994,1712520638864,-2852896.91418624,0.00021,2]
[321796995,1712520638874,-150.0,0.00021,2]
[321796996,1712520638883,-394.0,0.00021,2]
[321796997,1712520638892,-369.0,0.00021,2]
[321796998,1712520638902,-500.0,0.00021,2]
[321796999,1712520638911,-770.0,0.00021,2]
[321797000,1712520638920,-500.0,0.00021,2]
[321797001,1712520638929,-500.0,0.00021,2]
[321797002,1712520638939,-500.0,0.00021,2]
[321797003,1712520638949,-500.0,0.00021,2]
[321797004,1712520638959,-500.0,0.00021,2]
[321797005,1712520638968,-11309174.13222797,0.00021,2]
[321797006,1712520638983,-18318417.0586323,0.00021,2]
[321797007,1712520638994,-480648.39856715,0.00021,2]
[321797008,1712520639006,-690.35,0.00021,2]
[321797009,1712520639040,-1984.23362261,0.00021,2]
[321797010,1712520639052,-5958.97848001,0.00021,2]
[321797013,1712520639752,-152.61844782,0.00020898,2]
[321797014,1712520639762,-152.61844782,0.00020899,2]
[321797015,1712520639772,-354.62018436,0.000209,2]
[321797016,1712520639784,-219.60720753,0.000209,2]
[321797017,1712520639794,-94771.96282869,0.00021,2]
[321797018,1712520639855,-152.61844782,0.00020899,2]
[321797019,1712520639865,-34347.38155217,0.00021,2]
[321797023,1712520642750,-1165.15791884,0.00020706,2]
[321797024,1712520642759,-500.0,0.00020786,2]
[321797025,1712520642769,-318.13338595,0.00020786,2]
[321797026,1712520642779,-9150.18431384,0.00020855,2]
[321797027,1712520642788,-858.1555084,0.00020897,2]
[321797028,1712520642797,-152.61844782,0.00020899,2]
[321797029,1712520642806,-152.61844782,0.00020899,2]
[321797030,1712520642815,-152.61844782,0.000209,2]
[321797031,1712520642825,-1945.83210374,0.00020979,2]